[Event "44th Chess Olympiad Women 2022"]
[Site "Chennai"]
[Date "2022.08.01"]
[Round "4.52"]
[White "Van Wyk, Keisha C"]
[Black "Smith, Olivia"]
[Result "0-1"]
[WhiteElo "1237"]
[BlackElo "2038"]
[Annotator "NA RC"]
[PlyCount "104"]
[EventDate "2022.??.??"]
[TimeControl "60"]

1. e4 {[%emt 0:00:08]} d5 {[%emt 0:00:06]} 2. exd5 {[%emt 0:00:22]} Nf6 {
[%emt 0:00:12]} 3. Nf3 {[%emt 0:00:59]} Nxd5 {[%emt 0:00:24]} 4. d4 {[%emt 0:
00:00]} c6 {[%emt 0:02:26]} 5. Be2 {[%emt 0:03:28]} g6 {[%emt 0:00:38]} 6. c4 {
[%emt 0:02:09]} Nf6 {[%emt 0:01:01]} 7. Nc3 {[%emt 0:03:12]} Bg7 {[%emt 0:00:
00]} 8. Be3 {[%emt 0:01:01]} Nbd7 {[%emt 0:03:10]} 9. Qd2 {[%emt 0:02:21]} Ng4
{[%emt 0:08:28]} 10. Bf4 {[%emt 0:06:08]} e5 {[%emt 0:05:47]} 11. dxe5 {
[%emt 0:06:55]} Ngxe5 {[%emt 0:01:10]} 12. Nxe5 {[%emt 0:06:56]} Nxe5 {[%emt 0:
00:00]} 13. Qxd8+ {[%emt 0:03:00]} Kxd8 {[%emt 0:00:04]} 14. Rd1+ {[%emt 0:00:
00]} Ke7 {[%emt 0:00:21]} 15. O-O {[%emt 0:03:53]} Be6 {[%emt 0:01:14]} 16. b3
{[%emt 0:06:52]} Rhd8 {[%emt 0:01:43]} 17. Ne4 {[%emt 0:08:25]} Bf5 {[%emt 0:
00:00]} 18. Bxe5 {[%emt 0:14:42]} Bxe5 {[%emt 0:00:44]} 19. Ng3 {[%emt 0:04:07]
} Bc2 {[%emt 0:04:13]} 20. Rde1 {[%emt 0:03:22]} Kf6 {[%emt 0:05:50]} 21. Kh1 {
[%emt 0:04:48]} Rd2 {[%emt 0:13:06]} 22. Bd1 {[%emt 0:02:35]} Bd3 {[%emt 0:00:
00]} 23. Ne4+ {[%emt 0:01:49]} Bxe4 {[%emt 0:00:24]} 24. Rxe4 {[%emt 0:00:12]}
Rxa2 {[%emt 0:00:15]} 25. f4 {[%emt 0:02:32]} Bd6 {[%emt 0:00:21]} 26. g3 {
[%emt 0:01:20]} Rd8 {[%emt 0:01:59]} 27. Bf3 {[%emt 0:01:29]} Bb4 {[%emt 0:00:
00]} 28. h4 {[%emt 0:01:12]} Rdd2 {[%emt 0:00:36]} 29. Be2 {[%emt 0:01:42]}
Rxe2 {[%emt 0:00:52]} 30. Rxe2 {[%emt 0:00:54]} Rxe2 {[%emt 0:00:08]} 31. Rf3 {
[%emt 0:00:13]} Bc5 {[%emt 0:00:48]} 32. g4 {[%emt 0:01:42]} Re3 {[%emt 0:00:
00]} 33. Kg2 {[%emt 0:00:49]} Rxf3 {[%emt 0:00:20]} 34. Kxf3 {[%emt 0:00:13]}
h5 {[%emt 0:00:10]} 35. gxh5 {[%emt 0:00:51]} gxh5 {[%emt 0:00:12]} 36. Ke4 {
[%emt 0:00:11]} Bf2 {[%emt 0:00:09]} 37. Kf3 {[%emt 0:00:37]} Bxh4 {[%emt 0:00:
00]} 38. Kg2 {[%emt 0:00:26]} Kf5 {[%emt 0:00:08]} 39. Kf3 {[%emt 0:00:17]} Be7
{[%emt 0:00:18]} 40. Kg3 {[%emt 0:03:54]} h4+ {[%emt 0:00:08]} 41. Kf3 {
[%emt 0:30:36]} a5 {[%emt 0:30:12]} 42. Ke3 {[%emt 0:00:48]} h3 {[%emt 0:00:08]
} 43. Kf3 {[%emt 0:00:09]} Bh4 {[%emt 0:00:10]} 44. c5 {[%emt 0:00:23]} f6 {
[%emt 0:00:25]} 45. Ke3 {[%emt 0:01:15]} h2 {[%emt 0:00:09]} 46. Kd3 {[%emt 0:
00:00]} h1=Q {[%emt 0:00:12]} 47. Ke2 {[%emt 0:00:47]} Qe4+ {[%emt 0:00:25]}
48. Kd2 {[%emt 0:00:24]} Be1+ {[%emt 0:00:24]} 49. Kd1 {[%emt 0:00:22]} Bc3 {
[%emt 0:00:42]} 50. b4 {[%emt 0:00:19]} Qd3+ {[%emt 0:00:17]} 51. Kc1 {[%emt 0:
00:00]} Qd2+ {[%emt 0:00:04]} 52. Kb1 {[%emt 0:00:08]} Qb2# {[%emt 0:00:06]}
0-1

[Event "44th Chess Olympiad Women 2022"]
[Site "Chennai"]
[Date "2022.08.01"]
[Round "4.53"]
[White "Kojima, Natsumi"]
[Black "Cho, Hung-Ling"]
[Result "1/2-1/2"]
[WhiteElo "1782"]
[BlackElo "1576"]
[Annotator "NA RC"]
[PlyCount "120"]
[EventDate "2022.??.??"]
[TimeControl "60"]

1. e4 {[%emt 0:00:03]} e5 {[%emt 0:00:03]} 2. Nf3 {[%emt 0:00:11]} Nc6 {
[%emt 0:00:04]} 3. d4 {[%emt 0:00:06]} exd4 {[%emt 0:00:05]} 4. Nxd4 {[%emt 0:
00:00]} Nf6 {[%emt 0:00:08]} 5. Nxc6 {[%emt 0:00:31]} bxc6 {[%emt 0:00:14]} 6.
e5 {[%emt 0:00:26]} Qe7 {[%emt 0:02:28]} 7. Qe2 {[%emt 0:00:29]} Nd5 {[%emt 0:
00:00]} 8. c4 {[%emt 0:02:32]} Ba6 {[%emt 0:00:48]} 9. b3 {[%emt 0:01:11]} Nb6
{[%emt 0:16:49]} 10. Bb2 {[%emt 0:07:43]} Qg5 {[%emt 0:09:02]} 11. Nd2 {
[%emt 0:09:32]} O-O-O {[%emt 0:14:22]} 12. O-O-O {[%emt 0:15:17]} Bc5 {[%emt 0:
00:00]} 13. g3 {[%emt 0:06:06]} Rhe8 {[%emt 0:04:19]} 14. f4 {[%emt 0:03:14]}
Qe7 {[%emt 0:04:40]} 15. Qg4 {[%emt 0:17:21]} g6 {[%emt 0:04:22]} 16. Bg2 {
[%emt 0:05:24]} Ba3 {[%emt 0:08:19]} 17. Ne4 {[%emt 0:11:01]} Bxb2+ {[%emt 0:
00:00]} 18. Kxb2 {[%emt 0:00:07]} Qb4 {[%emt 0:00:25]} 19. Ka1 {[%emt 0:03:27]}
f5 {[%emt 0:06:03]} 20. exf6 {[%emt 0:02:20]} Bxc4 {[%emt 0:00:24]} 21. Qf3 {
[%emt 0:12:58]} Bd5 {[%emt 0:00:37]} 22. Rhe1 {[%emt 0:00:38]} Bxe4 {[%emt 0:
00:00]} 23. Rxe4 {[%emt 0:00:18]} Rxe4 {[%emt 0:00:10]} 24. Qxe4 {[%emt 0:00:
00]} Qc3+ {[%emt 0:00:39]} 25. Kb1 {[%emt 0:00:30]} Qxf6 {[%emt 0:00:07]} 26.
Qd3 {[%emt 0:01:01]} Kb8 {[%emt 0:01:06]} 27. Bf3 {[%emt 0:00:27]} Re8 {
[%emt 0:00:31]} 28. Qd2 {[%emt 0:00:32]} Qf5+ {[%emt 0:00:19]} 29. Ka1 {
[%emt 0:00:19]} Qc5 {[%emt 0:00:39]} 30. Rc1 {[%emt 0:00:35]} Qe3 {[%emt 0:00:
00]} 31. Qc3 {[%emt 0:00:41]} Qxc3+ {[%emt 0:00:29]} 32. Rxc3 {[%emt 0:00:05]}
Nd5 {[%emt 0:00:12]} 33. Rd3 {[%emt 0:00:55]} Re3 {[%emt 0:00:58]} 34. Rxe3 {
[%emt 0:00:30]} Nxe3 {[%emt 0:00:02]} 35. Be2 {[%emt 0:00:28]} Kb7 {[%emt 0:00:
00]} 36. Kb2 {[%emt 0:00:11]} c5 {[%emt 0:00:39]} 37. Kc3 {[%emt 0:00:29]} d5 {
[%emt 0:00:31]} 38. Kd3 {[%emt 0:00:51]} Nf5 {[%emt 0:00:11]} 39. Bf3 {[%emt 0:
00:00]} c6 {[%emt 0:00:32]} 40. Bg2 {[%emt 0:00:37]} a5 {[%emt 0:00:46]} 41. a4
{[%emt 0:30:35]} Kc7 {[%emt 0:30:32]} 42. Bf3 {[%emt 0:00:00]} Kd6 {[%emt 0:00:
00]} 43. Bg4 {[%emt 0:00:00]} Nd4 {[%emt 0:00:00]} 44. Bd1 {[%emt 0:00:00]} h5
{[%emt 0:00:00]} 45. Ke3 {[%emt 0:00:00]} Ke6 {[%emt 0:00:00]} 46. Kd3 {
[%emt 0:00:00]} Kf6 {[%emt 0:00:00]} 47. Kd2 {[%emt 0:00:00]} Kf5 {[%emt 0:00:
00]} 48. Ke3 {[%emt 0:00:00]} Kf6 {[%emt 0:00:43]} 49. Kd2 {[%emt 0:00:00]} Nf5
{[%emt 0:01:10]} 50. Bf3 {[%emt 0:00:00]} h4 {[%emt 0:02:15]} 51. g4 {[%emt 0:
00:00]} Nd4 {[%emt 0:00:28]} 52. Bd1 {[%emt 0:01:11]} Ne6 {[%emt 0:00:24]} 53.
Ke3 {[%emt 0:00:58]} g5 {[%emt 0:00:43]} 54. f5 {[%emt 0:00:43]} Nf4 {[%emt 0:
00:00]} 55. Bf3 {[%emt 0:01:35]} Ke5 {[%emt 0:00:20]} 56. Bh1 {[%emt 0:01:18]}
Kf6 {[%emt 0:00:41]} 57. Bf3 {[%emt 0:00:15]} Ke5 {[%emt 0:00:05]} 58. Bh1 {
[%emt 0:00:05]} Kd6 {[%emt 0:00:28]} 59. Bf3 {[%emt 0:00:49]} Ke5 {[%emt 0:00:
00]} 60. Bh1 {[%emt 0:00:31]} h3 {[%emt 0:02:16]} 1/2-1/2

[Event "44th Chess Olympiad Women 2022"]
[Site "Chennai"]
[Date "2022.08.01"]
[Round "4.53"]
[White "Mitsuyama, Rikka"]
[Black "Shih, Ching-An"]
[Result "0-1"]
[WhiteElo "1157"]
[BlackElo "1582"]
[Annotator "NA RC"]
[PlyCount "72"]
[EventDate "2022.??.??"]
[TimeControl "60"]

1. d4 {[%emt 0:09:50]} Nf6 {[%emt 0:00:13]} 2. c4 {[%emt 0:00:10]} e6 {[%emt 0:
00:00]} 3. Nf3 {[%emt 0:01:09]} d5 {[%emt 0:01:01]} 4. Nc3 {[%emt 0:01:39]} Be7
{[%emt 0:00:27]} 5. Bg5 {[%emt 0:02:01]} O-O {[%emt 0:01:48]} 6. e3 {[%emt 0:
00:00]} h6 {[%emt 0:01:15]} 7. Bh4 {[%emt 0:01:25]} Nbd7 {[%emt 0:00:42]} 8.
Bd3 {[%emt 0:02:10]} dxc4 {[%emt 0:01:15]} 9. Bxc4 {[%emt 0:00:42]} c5 {
[%emt 0:00:12]} 10. O-O {[%emt 0:03:45]} Nb6 {[%emt 0:03:44]} 11. Bd3 {[%emt 0:
00:00]} cxd4 {[%emt 0:10:34]} 12. Nxd4 {[%emt 0:01:15]} Nbd5 {[%emt 0:00:16]}
13. Rc1 {[%emt 0:04:39]} Bd7 {[%emt 0:04:48]} 14. Bg3 {[%emt 0:12:46]} Qb6 {
[%emt 0:01:53]} 15. Qe2 {[%emt 0:07:13]} Rac8 {[%emt 0:01:38]} 16. Ne4 {
[%emt 0:05:59]} Nb4 {[%emt 0:07:11]} 17. Nxf6+ {[%emt 0:05:31]} Bxf6 {[%emt 0:
00:00]} 18. Bc4 {[%emt 0:01:17]} Bxd4 {[%emt 0:10:57]} 19. exd4 {[%emt 0:00:55]
} Bc6 {[%emt 0:00:11]} 20. Be5 {[%emt 0:06:17]} Bd5 {[%emt 0:02:04]} 21. Qg4 {
[%emt 0:05:49]} f6 {[%emt 0:02:55]} 22. Bxd5 {[%emt 0:00:50]} Nxd5 {[%emt 0:00:
00]} 23. Bg3 {[%emt 0:01:50]} Rxc1 {[%emt 0:06:22]} 24. Rxc1 {[%emt 0:00:07]}
Qxb2 {[%emt 0:00:14]} 25. Qxe6+ {[%emt 0:01:19]} Kh8 {[%emt 0:00:03]} 26. Rd1 {
[%emt 0:09:00]} Qxa2 {[%emt 0:03:21]} 27. Bd6 {[%emt 0:04:04]} Rd8 {[%emt 0:00:
00]} 28. Re1 {[%emt 0:03:39]} Qa6 {[%emt 0:00:57]} 29. Qxd5 {[%emt 0:00:59]}
Qxd6 {[%emt 0:00:09]} 30. Qxb7 {[%emt 0:03:07]} Qxd4 {[%emt 0:00:10]} 31. h3 {
[%emt 0:01:23]} Qd2 {[%emt 0:04:46]} 32. Re7 {[%emt 0:01:16]} Qc1+ {[%emt 0:00:
00]} 33. Kh2 {[%emt 0:01:41]} Qf4+ {[%emt 0:00:05]} 34. g3 {[%emt 0:00:49]}
Qxf2+ {[%emt 0:00:13]} 35. Qg2 {[%emt 0:00:10]} Qc5 {[%emt 0:01:03]} 36. Qe2 {
[%emt 0:00:59]} a5 {[%emt 0:01:12]} 0-1

[Event "44th Chess Olympiad Women 2022"]
[Site "Chennai"]
[Date "2022.08.01"]
[Round "4.53"]
[White "Tsai, Sophie Yi-Hsuan"]
[Black "Sakai, Azumi"]
[Result "0-1"]
[WhiteElo "1131"]
[BlackElo "1759"]
[Annotator "NA RC"]
[PlyCount "74"]
[EventDate "2022.??.??"]
[TimeControl "60"]

1. e4 {[%emt 0:00:03]} e6 {[%emt 0:00:05]} 2. d4 {[%emt 0:00:06]} d5 {[%emt 0:
00:00]} 3. Nd2 {[%emt 0:00:06]} Be7 {[%emt 0:00:11]} 4. e5 {[%emt 0:00:05]} Nh6
{[%emt 0:00:20]} 5. Bd3 {[%emt 0:00:10]} c5 {[%emt 0:01:07]} 6. c3 {[%emt 0:00:
00]} Nc6 {[%emt 0:00:31]} 7. Ne2 {[%emt 0:00:10]} cxd4 {[%emt 0:01:21]} 8. cxd4
{[%emt 0:00:08]} Nf5 {[%emt 0:00:43]} 9. Nf3 {[%emt 0:02:59]} Qb6 {[%emt 0:00:
00]} 10. O-O {[%emt 0:27:28]} Bd7 {[%emt 0:01:45]} 11. Bxf5 {[%emt 0:15:07]}
exf5 {[%emt 0:00:18]} 12. b3 {[%emt 0:00:27]} h6 {[%emt 0:02:17]} 13. Nc3 {
[%emt 0:01:02]} Be6 {[%emt 0:00:56]} 14. Bb2 {[%emt 0:04:13]} g5 {[%emt 0:00:
00]} 15. Na4 {[%emt 0:00:15]} Qc7 {[%emt 0:02:10]} 16. Rc1 {[%emt 0:08:37]} g4
{[%emt 0:08:02]} 17. Ne1 {[%emt 0:00:39]} Bg5 {[%emt 0:07:35]} 18. Rc3 {
[%emt 0:02:25]} f4 {[%emt 0:03:13]} 19. Nc5 {[%emt 0:01:27]} h5 {[%emt 0:01:26]
} 20. Qc2 {[%emt 0:01:01]} O-O-O {[%emt 0:25:59]} 21. b4 {[%emt 0:09:47]} Qb6 {
[%emt 0:07:03]} 22. Nxe6 {[%emt 0:07:22]} fxe6 {[%emt 0:01:11]} 23. Qg6 {
[%emt 0:02:31]} Bh6 {[%emt 0:06:46]} 24. Qxe6+ {[%emt 0:01:13]} Kb8 {[%emt 0:
00:00]} 25. Nc2 {[%emt 0:02:05]} f3 {[%emt 0:10:17]} 26. g3 {[%emt 0:03:32]}
Bd2 {[%emt 0:01:26]} 27. Rb3 {[%emt 0:00:10]} Rh6 {[%emt 0:01:22]} 28. Qf5 {
[%emt 0:02:52]} Ne7 {[%emt 0:02:44]} 29. Qd3 {[%emt 0:00:42]} Bg5 {[%emt 0:00:
00]} 30. Ne3 {[%emt 0:00:32]} Qe6 {[%emt 0:00:28]} 31. Bc1 {[%emt 0:01:43]} h4
{[%emt 0:00:19]} 32. Nf5 {[%emt 0:02:58]} Bxc1 {[%emt 0:01:17]} 33. Nxe7 {
[%emt 0:00:14]} hxg3 {[%emt 0:00:59]} 34. Rxc1 {[%emt 0:01:54]} gxf2+ {[%emt 0:
00:00]} 35. Kxf2 {[%emt 0:01:37]} Rxh2+ {[%emt 0:00:19]} 36. Ke1 {[%emt 0:00:
00]} Qxe7 {[%emt 0:00:34]} 37. Qf5 {[%emt 0:00:56]} Qh4+ {[%emt 0:01:02]} 0-1

[Event "44th Chess Olympiad Women 2022"]
[Site "Chennai"]
[Date "2022.08.01"]
[Round "4.54"]
[White "Ioannides Liu, Alice"]
[Black "Ampaire Shakira"]
[Result "1/2-1/2"]
[WhiteElo "1292"]
[BlackElo "1666"]
[Annotator "NA RC"]
[PlyCount "189"]
[EventDate "2022.??.??"]
[TimeControl "60"]

1. e4 {[%emt 0:00:02]} c5 {[%emt 0:03:47]} 2. c3 {[%emt 0:00:04]} e5 {[%emt 0:
00:00]} 3. Nf3 {[%emt 0:00:40]} Nc6 {[%emt 0:00:22]} 4. d4 {[%emt 0:02:27]}
cxd4 {[%emt 0:03:49]} 5. cxd4 {[%emt 0:00:08]} Bb4+ {[%emt 0:02:16]} 6. Bd2 {
[%emt 0:08:07]} exd4 {[%emt 0:08:22]} 7. Bxb4 {[%emt 0:08:24]} Nxb4 {[%emt 0:
00:00]} 8. a3 {[%emt 0:02:28]} Nc6 {[%emt 0:01:08]} 9. Bc4 {[%emt 0:25:21]} Nf6
{[%emt 0:03:09]} 10. O-O {[%emt 0:11:31]} O-O {[%emt 0:00:12]} 11. Nxd4 {
[%emt 0:06:28]} Nxe4 {[%emt 0:02:05]} 12. Re1 {[%emt 0:01:24]} d5 {[%emt 0:00:
00]} 13. Nxc6 {[%emt 0:04:00]} bxc6 {[%emt 0:00:48]} 14. Bd3 {[%emt 0:02:37]}
Bf5 {[%emt 0:13:22]} 15. Bxe4 {[%emt 0:09:03]} Bxe4 {[%emt 0:00:23]} 16. Nc3 {
[%emt 0:01:02]} Bg6 {[%emt 0:03:03]} 17. b4 {[%emt 0:04:09]} Qf6 {[%emt 0:00:
00]} 18. Na4 {[%emt 0:02:08]} Rfe8 {[%emt 0:02:59]} 19. Nc5 {[%emt 0:01:19]} h6
{[%emt 0:01:30]} 20. h3 {[%emt 0:00:53]} Re7 {[%emt 0:07:31]} 21. Rxe7 {
[%emt 0:00:42]} Qxe7 {[%emt 0:00:11]} 22. Qe1 {[%emt 0:01:29]} Qd6 {[%emt 0:00:
00]} 23. Qd2 {[%emt 0:01:41]} a5 {[%emt 0:01:18]} 24. Nb7 {[%emt 0:01:11]} Qf6
{[%emt 0:01:10]} 25. Rc1 {[%emt 0:01:34]} axb4 {[%emt 0:00:40]} 26. axb4 {
[%emt 0:00:14]} Ra1 {[%emt 0:01:59]} 27. Na5 {[%emt 0:00:27]} Rxc1+ {[%emt 0:
00:00]} 28. Qxc1 {[%emt 0:00:09]} d4 {[%emt 0:00:35]} 29. Qd2 {[%emt 0:01:57]}
d3 {[%emt 0:01:36]} 30. Nb3 {[%emt 0:00:44]} Qd6 {[%emt 0:05:46]} 31. Nc1 {
[%emt 0:00:49]} Kf8 {[%emt 0:00:50]} 32. Nb3 {[%emt 0:00:46]} Qe5 {[%emt 0:00:
00]} 33. Nc1 {[%emt 0:01:02]} Qd5 {[%emt 0:01:57]} 34. Kf1 {[%emt 0:00:42]} f6
{[%emt 0:04:00]} 35. Kg1 {[%emt 0:00:22]} Be4 {[%emt 0:01:09]} 36. f3 {[%emt 0:
00:00]} Bf5 {[%emt 0:00:13]} 37. Kf1 {[%emt 0:00:28]} h5 {[%emt 0:00:21]} 38.
h4 {[%emt 0:00:47]} Kf7 {[%emt 0:00:37]} 39. Kf2 {[%emt 0:00:57]} Qd4+ {
[%emt 0:00:35]} 40. Kf1 {[%emt 0:00:22]} Qxh4 {[%emt 0:01:34]} 41. Nxd3 {
[%emt 0:30:24]} Bxd3+ {[%emt 0:30:49]} 42. Qxd3 {[%emt 0:00:09]} Qxb4 {[%emt 0:
00:00]} 43. Qd7+ {[%emt 0:00:09]} Kg6 {[%emt 0:00:37]} 44. Qxc6 {[%emt 0:00:00]
} Qb1+ {[%emt 0:00:00]} 45. Kf2 {[%emt 0:00:00]} Qb2+ {[%emt 0:00:00]} 46. Kf1
{[%emt 0:00:00]} Qe5 {[%emt 0:00:00]} 47. Qc4 {[%emt 0:00:00]} Kg5 {[%emt 0:00:
00]} 48. Qa4 {[%emt 0:00:00]} h4 {[%emt 0:00:00]} 49. Qg4+ {[%emt 0:00:00]} Kh6
{[%emt 0:00:00]} 50. Qxh4+ {[%emt 0:00:00]} Kg6 {[%emt 0:00:00]} 51. Qg4+ {
[%emt 0:00:00]} Qg5 {[%emt 0:00:00]} 52. Qe4+ {[%emt 0:01:25]} f5 {[%emt 0:00:
00]} 53. Qe8+ {[%emt 0:00:37]} Kh7 {[%emt 0:00:00]} 54. Qe5 {[%emt 0:00:46]}
Kh6 {[%emt 0:00:00]} 55. Qh2+ {[%emt 0:00:35]} Kg6 {[%emt 0:00:00]} 56. Qd6+ {
[%emt 0:00:28]} Kh5 {[%emt 0:00:00]} 57. Qh2+ {[%emt 0:00:42]} Qh4 {[%emt 0:00:
00]} 58. Qe5 {[%emt 0:01:00]} Qc4+ {[%emt 0:00:00]} 59. Kf2 {[%emt 0:00:34]}
Qh4+ {[%emt 0:00:00]} 60. Kf1 {[%emt 0:00:22]} Qg5 {[%emt 0:00:00]} 61. Qh2+ {
[%emt 0:00:42]} Kg6 {[%emt 0:00:00]} 62. Qd6+ {[%emt 0:00:31]} Qf6 {[%emt 0:00:
00]} 63. Qg3+ {[%emt 0:00:13]} Kf7 {[%emt 0:00:00]} 64. Qc7+ {[%emt 0:00:24]}
Qe7 {[%emt 0:00:03]} 65. Qc4+ {[%emt 0:00:31]} Qe6 {[%emt 0:00:39]} 66. Qf4 {
[%emt 0:00:47]} Kf6 {[%emt 0:00:27]} 67. Qd4+ {[%emt 0:00:45]} Qe5 {[%emt 0:00:
00]} 68. Qd8+ {[%emt 0:00:55]} Kg6 {[%emt 0:00:49]} 69. Qb6+ {[%emt 0:00:30]}
Kh5 {[%emt 0:00:31]} 70. Qc6 {[%emt 0:00:51]} f4 {[%emt 0:01:06]} 71. Qd7 {
[%emt 0:00:41]} Qa1+ {[%emt 0:02:22]} 72. Kf2 {[%emt 0:00:13]} Qb2+ {[%emt 0:
00:00]} 73. Kf1 {[%emt 0:00:14]} Qc1+ {[%emt 0:00:09]} 74. Ke2 {[%emt 0:00:23]}
Qe3+ {[%emt 0:00:20]} 75. Kf1 {[%emt 0:00:21]} Qe5 {[%emt 0:00:46]} 76. Qg4+ {
[%emt 0:00:36]} Kh6 {[%emt 0:00:21]} 77. Qh4+ {[%emt 0:00:32]} Kg6 {[%emt 0:00:
00]} 78. Qg4+ {[%emt 0:00:08]} Kf6 {[%emt 0:00:07]} 79. Qd7 {[%emt 0:01:05]} g5
{[%emt 0:00:56]} 80. Qc6+ {[%emt 0:00:31]} Kf5 {[%emt 0:00:12]} 81. Qc2+ {
[%emt 0:00:11]} Kf6 {[%emt 0:00:21]} 82. Qc6+ {[%emt 0:00:14]} Kg7 {[%emt 0:00:
00]} 83. Qd7+ {[%emt 0:00:15]} Kg6 {[%emt 0:00:28]} 84. Qd3+ {[%emt 0:00:23]}
Kh6 {[%emt 0:00:20]} 85. Qa3 {[%emt 0:00:53]} Kh5 {[%emt 0:00:23]} 86. Qf8 {
[%emt 0:01:06]} Qb5+ {[%emt 0:01:39]} 87. Kf2 {[%emt 0:00:20]} Qb2+ {[%emt 0:
00:00]} 88. Kf1 {[%emt 0:00:13]} Qc1+ {[%emt 0:00:14]} 89. Ke2 {[%emt 0:00:26]}
Qe3+ {[%emt 0:00:37]} 90. Kf1 {[%emt 0:00:07]} Qd3+ {[%emt 0:00:16]} 91. Kf2 {
[%emt 0:00:33]} Qd2+ {[%emt 0:03:59]} 92. Kf1 {[%emt 0:00:17]} Qd1+ {[%emt 0:
00:00]} 93. Kf2 {[%emt 0:00:12]} Qc2+ {[%emt 0:02:22]} 94. Kf1 {[%emt 0:00:17]}
Qb1+ {[%emt 0:00:07]} 95. Kf2 {[%emt 0:00:25]} 1/2-1/2

[Event "44th Chess Olympiad Women 2022"]
[Site "Chennai"]
[Date "2022.08.01"]
[Round "4.54"]
[White "Kawuma Patricia"]
[Black "Bouzana, Christina"]
[Result "0-1"]
[WhiteElo "1653"]
[BlackElo "1079"]
[Annotator "NA RC"]
[PlyCount "72"]
[EventDate "2022.??.??"]
[TimeControl "60"]

1. e4 {[%emt 0:00:03]} c6 {[%emt 0:00:07]} 2. d4 {[%emt 0:00:22]} d5 {[%emt 0:
00:00]} 3. exd5 {[%emt 0:00:15]} cxd5 {[%emt 0:00:08]} 4. Bd3 {[%emt 0:00:48]}
Nc6 {[%emt 0:00:17]} 5. c3 {[%emt 0:00:16]} h6 {[%emt 0:00:52]} 6. Bf4 {
[%emt 0:00:38]} Nf6 {[%emt 0:00:35]} 7. h3 {[%emt 0:00:18]} e6 {[%emt 0:00:34]}
8. Nf3 {[%emt 0:00:43]} Bd6 {[%emt 0:01:04]} 9. Bxd6 {[%emt 0:00:21]} Qxd6 {
[%emt 0:00:06]} 10. O-O {[%emt 0:00:18]} O-O {[%emt 0:00:41]} 11. Re1 {[%emt 0:
00:00]} Bd7 {[%emt 0:01:41]} 12. Nbd2 {[%emt 0:01:02]} Rfe8 {[%emt 0:06:35]}
13. Ne5 {[%emt 0:00:30]} Qc7 {[%emt 0:03:13]} 14. Ndf3 {[%emt 0:00:52]} Rac8 {
[%emt 0:22:57]} 15. Bc2 {[%emt 0:05:54]} a6 {[%emt 0:02:58]} 16. Qd3 {[%emt 0:
00:00]} Ne7 {[%emt 0:05:56]} 17. Nxd7 {[%emt 0:00:55]} Qxd7 {[%emt 0:00:34]}
18. Ne5 {[%emt 0:00:11]} Qc7 {[%emt 0:03:04]} 19. Re3 {[%emt 0:01:07]} Nf5 {
[%emt 0:05:08]} 20. Ree1 {[%emt 0:08:01]} b5 {[%emt 0:14:27]} 21. a3 {[%emt 0:
00:00]} Qb7 {[%emt 0:02:13]} 22. Qf3 {[%emt 0:01:30]} Nd6 {[%emt 0:02:49]} 23.
Nd3 {[%emt 0:04:27]} Nd7 {[%emt 0:04:49]} 24. Rac1 {[%emt 0:02:12]} Re7 {
[%emt 0:04:16]} 25. Nb4 {[%emt 0:02:27]} a5 {[%emt 0:02:05]} 26. Nxd5 {[%emt 0:
00:00]} Ree8 {[%emt 0:02:43]} 27. Ne3 {[%emt 0:02:27]} Qxf3 {[%emt 0:02:35]}
28. gxf3 {[%emt 0:00:02]} Nb6 {[%emt 0:00:28]} 29. Bd3 {[%emt 0:01:04]} a4 {
[%emt 0:03:23]} 30. Kf1 {[%emt 0:01:53]} Rc7 {[%emt 0:01:29]} 31. Nf5 {[%emt 0:
00:00]} exf5 {[%emt 0:01:36]} 32. Rxe8+ {[%emt 0:00:56]} Nxe8 {[%emt 0:00:06]}
33. Bxb5 {[%emt 0:00:37]} Nd6 {[%emt 0:00:46]} 34. Bd3 {[%emt 0:00:07]} Nbc4 {
[%emt 0:01:34]} 35. Bxc4 {[%emt 0:01:43]} Nxc4 {[%emt 0:00:45]} 36. Rb1 {
[%emt 0:00:19]} Nd2+ {[%emt 0:00:07]} 0-1

[Event "44th Chess Olympiad Women 2022"]
[Site "Chennai"]
[Date "2022.08.01"]
[Round "4.54"]
[White "Nakabo, Peninah"]
[Black "Markidou, Christianna"]
[Result "1-0"]
[WhiteElo "1747"]
[BlackElo "1701"]
[Annotator "NA RC"]
[PlyCount "101"]
[EventDate "2022.??.??"]
[TimeControl "60"]

1. e4 {[%emt 0:00:06]} e5 {[%emt 0:00:06]} 2. Nf3 {[%emt 0:00:05]} Nc6 {
[%emt 0:00:09]} 3. d4 {[%emt 0:00:16]} exd4 {[%emt 0:00:21]} 4. Bc4 {[%emt 0:
00:00]} Be7 {[%emt 0:00:40]} 5. c3 {[%emt 0:00:23]} d6 {[%emt 0:05:52]} 6. Qb3
{[%emt 0:03:23]} Bf6 {[%emt 0:22:39]} 7. Bxf7+ {[%emt 0:01:29]} Kf8 {[%emt 0:
00:00]} 8. Bxg8 {[%emt 0:04:11]} Rxg8 {[%emt 0:00:10]} 9. O-O {[%emt 0:02:07]}
Qe7 {[%emt 0:02:45]} 10. Re1 {[%emt 0:03:57]} Qe6 {[%emt 0:01:08]} 11. Qb5 {
[%emt 0:05:07]} a6 {[%emt 0:01:41]} 12. Qd3 {[%emt 0:03:36]} dxc3 {[%emt 0:00:
00]} 13. Nxc3 {[%emt 0:01:07]} Nb4 {[%emt 0:01:30]} 14. Qd1 {[%emt 0:05:24]} h6
{[%emt 0:03:29]} 15. Nd5 {[%emt 0:04:18]} Nxd5 {[%emt 0:00:29]} 16. exd5 {
[%emt 0:00:14]} Qf7 {[%emt 0:01:33]} 17. Qb3 {[%emt 0:04:12]} b6 {[%emt 0:00:
00]} 18. Bd2 {[%emt 0:06:18]} Bb7 {[%emt 0:00:42]} 19. Re6 {[%emt 0:00:13]} Qh5
{[%emt 0:07:51]} 20. Qc2 {[%emt 0:17:15]} Bxd5 {[%emt 0:03:07]} 21. Qxc7 {
[%emt 0:01:25]} Bxe6 {[%emt 0:01:07]} 22. Qxd6+ {[%emt 0:00:12]} Kf7 {[%emt 0:
00:00]} 23. Re1 {[%emt 0:01:50]} Qd5 {[%emt 0:01:05]} 24. Qf4 {[%emt 0:00:46]}
Kg6 {[%emt 0:07:43]} 25. Ne5+ {[%emt 0:03:41]} Kh7 {[%emt 0:01:05]} 26. Bc3 {
[%emt 0:00:48]} Qxa2 {[%emt 0:00:57]} 27. Qg3 {[%emt 0:00:32]} Bxe5 {[%emt 0:
00:00]} 28. Qxe5 {[%emt 0:00:11]} Rae8 {[%emt 0:02:46]} 29. Qe4+ {[%emt 0:00:
00]} Kh8 {[%emt 0:01:54]} 30. Qg6 {[%emt 0:00:26]} Bf5 {[%emt 0:07:35]} 31.
Qxh6+ {[%emt 0:00:30]} Bh7 {[%emt 0:00:26]} 32. Bxg7+ {[%emt 0:05:21]} Rxg7 {
[%emt 0:01:15]} 33. Rxe8+ {[%emt 0:00:13]} Qg8 {[%emt 0:01:20]} 34. Rxg8+ {
[%emt 0:00:15]} Rxg8 {[%emt 0:02:51]} 35. Qxb6 {[%emt 0:00:45]} Rg6 {[%emt 0:
00:00]} 36. Qd8+ {[%emt 0:01:46]} Bg8 {[%emt 0:02:01]} 37. h4 {[%emt 0:01:33]}
Kh7 {[%emt 0:07:08]} 38. Qd3 {[%emt 0:00:36]} Kh6 {[%emt 0:00:23]} 39. Kh2 {
[%emt 0:00:28]} Kh5 {[%emt 0:00:47]} 40. Qf5+ {[%emt 0:01:41]} Kh6 {[%emt 0:00:
00]} 41. Qf8+ {[%emt 0:31:04]} Kh5 {[%emt 0:31:55]} 42. Qf5+ {[%emt 0:01:27]}
Kh6 {[%emt 0:00:17]} 43. g4 {[%emt 0:00:28]} Be6 {[%emt 0:00:00]} 44. Qf8+ {
[%emt 0:00:00]} Kh7 {[%emt 0:00:00]} 45. g5 {[%emt 0:00:00]} Bd7 {[%emt 0:00:
00]} 46. Qe7+ {[%emt 0:00:00]} Rg7 {[%emt 0:00:00]} 47. Qe4+ {[%emt 0:00:00]}
Kg8 {[%emt 0:00:00]} 48. Qc4+ {[%emt 0:00:00]} Kh7 {[%emt 0:00:00]} 49. Qxa6 {
[%emt 0:00:00]} Be8 {[%emt 0:00:00]} 50. b4 {[%emt 0:00:00]} Bh5 {[%emt 0:00:
00]} 51. Qh6+ {[%emt 0:00:00]} 1-0